fUSD/lending_fUSD_20260630
["ID","MTS","AMOUNT","RATE_DAILY","PERIOD"]
[426734950,1782767432000,-1049.88324571,0.00012373,2]
[426734997,1782767432000,-1028.26800242,0.00012373,2]
[426734995,1782767432000,-1028.26800242,0.00012373,2]
[426735038,1782767432000,-152.0,0.0001266,2]
[426735030,1782767432000,-781.37,0.00012632,2]
[426735056,1782767432000,-150.00000001,0.00013488,2]
[426735028,1782767432000,-171.89,0.00012596,2]
[426735032,1782767432000,-151.0,0.0001266,2]
[426735034,1782767432000,-153.0,0.0001266,2]
[426735033,1782767432000,-153.0,0.0001266,2]
[426734998,1782767432000,-1028.26800242,0.00012373,2]
[426735037,1782767432000,-150.0,0.0001266,2]
[426735031,1782767432000,-371.36,0.00012641,2]
[426735035,1782767432000,-150.0,0.0001266,2]
[426735040,1782767432000,-166.66,0.00012676,2]
[426735042,1782767432000,-166.66,0.00012937,2]
[426735041,1782767432000,-251.23,0.00012724,2]
[426735043,1782767432000,-781.37,0.00012941,2]
[426735039,1782767432000,-151.0,0.0001266,2]
[426735046,1782767432000,-781.37,0.00013249,2]
[426735045,1782767432000,-166.66,0.00013199,2]
[426735044,1782767432000,-371.36,0.00013056,2]
[426735047,1782767432000,-153.0,0.00013326,2]
[426735049,1782767432000,-151.0,0.00013326,2]
[426735048,1782767432000,-151.0,0.00013326,2]
[426735050,1782767432000,-150.0,0.00013326,2]
[426735051,1782767432000,-344.65918068,0.00013449,2]
[426735053,1782767432000,-166.66,0.0001346,2]
[426735055,1782767432000,-150.0,0.00013488,2]
[426735052,1782767432000,-383.060665,0.00013456,2]
[426735054,1782767432000,-150.0,0.00013488,2]
[426735029,1782767432000,-549.63,0.0001263,2]
[426735024,1782767432000,-150.0,0.00012425,2]
[426735036,1782767432000,-152.0,0.0001266,2]
[426735023,1782767432000,-9531.61,0.00012374,2]
[426734996,1782767432000,-1028.26800242,0.00012373,2]
[426734992,1782767432000,-1028.26800242,0.00012373,2]
[426735000,1782767432000,-1028.26800242,0.00012373,2]
[426735003,1782767432000,-1028.26800242,0.00012373,2]
[426735001,1782767432000,-1028.26800242,0.00012373,2]
[426735006,1782767432000,-1028.26800242,0.00012373,2]
[426735007,1782767432000,-1028.26800242,0.00012373,2]
[426735002,1782767432000,-1028.26800242,0.00012373,2]
[426735004,1782767432000,-1028.26800242,0.00012373,2]
[426735005,1782767432000,-1028.26800242,0.00012373,2]
[426735027,1782767432000,-302.25,0.00012557,2]
[426735010,1782767432000,-1028.26800242,0.00012373,2]
[426735013,1782767432000,-1028.26800242,0.00012373,2]
[426735009,1782767432000,-1028.26800242,0.00012373,2]
[426735011,1782767432000,-1028.26800242,0.00012373,2]
[426735021,1782767432000,-1028.2680024,0.00012373,2]
[426735022,1782767432000,-1028.2680024,0.00012373,2]
[426735012,1782767432000,-1028.26800242,0.00012373,2]
[426735014,1782767432000,-1028.26800242,0.00012373,2]
[426735016,1782767432000,-1028.26800242,0.00012373,2]
[426735018,1782767432000,-1028.26800242,0.00012373,2]
[426735019,1782767432000,-1028.26800242,0.00012373,2]
[426735020,1782767432000,-1028.2680024,0.00012373,2]
[426735025,1782767432000,-151.0,0.00012434,2]
[426735026,1782767432000,-153.0,0.00012496,2]
[426735015,1782767432000,-1028.26800242,0.00012373,2]
[426735008,1782767432000,-1028.26800242,0.00012373,2]
[426735017,1782767432000,-1028.26800242,0.00012373,2]
[426735075,1782767433000,-151.0,0.00013598,2]
[426735071,1782767433000,-5328.07163873,0.00013597,2]
[426735070,1782767433000,-1960.19185747,0.00013597,2]
[426735068,1782767433000,-781.37,0.00013557,2]
[426735069,1782767433000,-150.0,0.00013581,2]
[426735067,1782767433000,-151.0,0.00013546,2]
[426735065,1782767433000,-171.96849734,0.00013498,2]
[426735081,1782767433000,-716.44,0.00013698,2]
[426735064,1782767433000,-488.1991261,0.00013498,2]
[426735061,1782767433000,-150.0,0.00013497,2]
[426735063,1782767433000,-2385.30369592,0.00013498,2]
[426735062,1782767433000,-1872.56958527,0.00013498,2]
[426735060,1782767433000,-405.7176,0.00013497,2]
[426735057,1782767433000,-150.0,0.00013488,2]
[426735058,1782767433000,-150.0,0.00013488,2]
[426735059,1782767433000,-150.0,0.00013488,2]
[426735066,1782767433000,-151.0,0.00013534,2]
[426735082,1782767433000,-716.44,0.00013698,2]
[426735079,1782767433000,-150.0,0.00013675,2]
[426735080,1782767433000,-501.41673662,0.00013698,2]
[426735074,1782767433000,-151.0,0.00013598,2]
[426735093,1782767433000,-1447.06932886,0.00013699,2]
[426735089,1782767433000,-999.99,0.00013699,2]
[426735091,1782767433000,-1103.24417488,0.00013699,2]
[426735092,1782767433000,-8896.74582512,0.00013699,2]
[426735090,1782767433000,-9999.99,0.00013699,2]
[426735088,1782767433000,-150.99,0.00013699,2]
[426735086,1782767433000,-716.44,0.00013698,2]
[426735084,1782767433000,-716.44,0.00013698,2]
[426735085,1782767433000,-716.44,0.00013698,2]
[426735087,1782767433000,-338.07759744,0.00013698,2]
[426735078,1782767433000,-151.0,0.00013598,2]
[426735077,1782767433000,-151.0,0.00013598,2]
[426735076,1782767433000,-152.0,0.00013598,2]
[426735072,1782767433000,-262.06122913,0.00013597,2]
[426735083,1782767433000,-716.44,0.00013698,2]
[426735073,1782767433000,-390.37723375,0.00013597,2]
[426735112,1782767438000,-762.15,0.00013699,2]
[426735137,1782767440000,-2385.30369592,0.00013791,2]
[426735149,1782767440000,-488.1991261,0.00014122,2]
[426735134,1782767440000,-150.0,0.00013769,2]
[426735136,1782767440000,-150.0,0.00013787,2]
[426735139,1782767440000,-150.0,0.00013862,2]
[426735140,1782767440000,-488.1991261,0.00013914,2]
[426735141,1782767440000,-891.0,0.00013921,2]
[426735143,1782767440000,-150.0,0.00013956,2]
[426735145,1782767440000,-216.58458871,0.00014051,2]
[426735144,1782767440000,-150.0,0.0001405,2]
[426735146,1782767440000,-889.0,0.00014055,2]
[426735147,1782767440000,-2385.30369592,0.00014084,2]
[426735138,1782767440000,-150.0,0.00013843,2]
[426735142,1782767440000,-918.0,0.00013921,2]
[426735129,1782767440000,-488.1991261,0.00013706,2]
[426735130,1782767440000,-12435.35746827,0.00013707,2]
[426735114,1782767440000,-603.06,0.00013699,2]
[426735122,1782767440000,-9999.99,0.00013699,2]
[426735119,1782767440000,-1205.79994,0.00013699,2]
[426735117,1782767440000,-545.10455253,0.00013699,2]
[426735120,1782767440000,-20319.68617861,0.00013699,2]
[426735121,1782767440000,-5266.14,0.00013699,2]
[426735133,1782767440000,-911.0,0.00013762,2]
[426735123,1782767440000,-9999.99,0.00013699,2]
[426735131,1782767440000,-166.66,0.00013721,2]
[426735126,1782767440000,-299.99,0.00013699,2]
[426735132,1782767440000,-886.0,0.00013762,2]
[426735124,1782767440000,-4999.99,0.00013699,2]
[426735148,1782767440000,-150.0,0.00014087,2]
[426735127,1782767440000,-200.0,0.00013699,2]
[426735125,1782767440000,-9999.99,0.00013699,2]
[426735157,1782767440000,-2385.30369592,0.00014376,2]
[426735128,1782767440000,-761.67,0.00013699,2]
[426735151,1782767440000,-150.0,0.00014237,2]
[426735171,1782767440000,-150.0,0.00014799,2]
[426735176,1782767440000,-488.1991261,0.00014955,2]
[426735174,1782767440000,-700.0,0.000149,5]
[426735177,1782767440000,-4454.61165466,0.00014955,2]
[426735175,1782767440000,-471.40552977,0.00014919,2]
[426735179,1782767440000,-2385.30369592,0.00014962,2]
[426735173,1782767440000,-150.0,0.00014893,2]
[426735170,1782767440000,-488.1991261,0.00014747,2]
[426735178,1782767440000,-223.54524297,0.00014955,2]
[426735182,1782767440000,-150.0,0.00014986,2]
[426735181,1782767440000,-150.0,0.00014986,2]
[426735183,1782767440000,-150.0,0.00014986,2]
[426735184,1782767440000,-271.59492068,0.00014986,2]
[426735150,1782767440000,-150.0,0.00014143,2]
[426735180,1782767440000,-150.0,0.00014986,2]
[426735172,1782767440000,-700.0,0.000148,5]
[426735135,1782767440000,-277.43,0.00013776,2]
[426735164,1782767440000,-150.0,0.00014612,2]
[426735169,1782767440000,-150.0,0.00014705,2]
[426735152,1782767440000,-150.0,0.00014237,2]
[426735155,1782767440000,-488.1991261,0.00014331,2]
[426735154,1782767440000,-150.0,0.00014237,2]
[426735156,1782767440000,-150.0,0.00014331,2]
[426735158,1782767440000,-150.0,0.00014387,2]
[426735159,1782767440000,-150.0,0.00014424,2]
[426735153,1782767440000,-150.0,0.00014237,2]
[426735162,1782767440000,-488.1991261,0.00014539,2]
[426735161,1782767440000,-150.0,0.00014518,2]
[426735163,1782767440000,-2800.0,0.000146,5]
[426735168,1782767440000,-3500.0,0.000147,5]
[426735166,1782767440000,-2385.30369592,0.00014669,2]
[426735165,1782767440000,-150.0,0.00014617,2]
[426735167,1782767440000,-150.0,0.00014687,2]
[426735160,1782767440000,-2100.0,0.000145,5]
[426735194,1782767441000,-716.44,0.00014999,2]
[426735198,1782767441000,-716.44,0.00014999,2]
[426735200,1782767441000,-716.44,0.00014999,2]
[426735195,1782767441000,-716.44,0.00014999,2]
[426735197,1782767441000,-716.44,0.00014999,2]
[426735193,1782767441000,-716.44,0.00014999,2]
[426735192,1782767441000,-716.44,0.00014999,2]
[426735189,1782767441000,-716.44,0.00014999,2]
[426735188,1782767441000,-716.44,0.00014999,2]
[426735185,1782767441000,-26780.01532131,0.00014989,2]
[426735190,1782767441000,-716.44,0.00014999,2]
[426735186,1782767441000,-716.44,0.00014999,2]
[426735187,1782767441000,-716.44,0.00014999,2]
[426735191,1782767441000,-716.44,0.00014999,2]
[426735196,1782767441000,-716.44,0.00014999,2]
[426735199,1782767441000,-716.44,0.00014999,2]
[426735203,1782767441000,-716.67,0.00014999,2]
[426735202,1782767441000,-716.44,0.00014999,2]
[426735220,1782767441000,-1065.41885905,0.00015,2]
[426735219,1782767441000,-4270.17385727,0.00015,2]
[426735216,1782767441000,-3052.58,0.00015,2]
[426735213,1782767441000,-1714.86658685,0.00015,2]
[426735212,1782767441000,-7119.63217452,0.00015,2]
[426735211,1782767441000,-826.88371761,0.00015,2]
[426735208,1782767441000,-150.0,0.0001398,2]
[426735210,1782767441000,-333.32382901,0.00015,2]
[426735207,1782767441000,-99796.6732111,0.00015,2]
[426735205,1782767441000,-300.0,0.00014999,2]
[426735206,1782767441000,-666.0,0.00014999,2]
[426735204,1782767441000,-300.0,0.00014999,2]
[426735209,1782767441000,-1633.11428515,0.00015,2]
[426735201,1782767441000,-716.44,0.00014999,2]
[426735281,1782767453000,-250.0,0.00014117,2]
[426735283,1782767454000,-39685.6476677,0.00015,2]
[426735285,1782767454000,-2797.49519604,0.00015,2]
[426735284,1782767454000,-3085.24120998,0.00015,2]
[426735282,1782767454000,-135.11971938,0.00015,2]
[426735288,1782767455000,-41173.40249475,0.00015,2]
[426735286,1782767455000,-688.56,0.00015,2]
[426735287,1782767455000,-2013.90226813,0.00015,2]
[426735289,1782767455000,-1259.434,0.00015,2]
[426735290,1782767506000,-500.0,0.00012372,2]
[426735292,1782767560000,-500.0,0.00012372,2]
[426735293,1782767613000,-500.0,0.00012372,2]
[426735294,1782767666000,-232.43951784,0.00012372,2]
[426735295,1782768033000,-216.58458871,0.00012469,2]
[426735296,1782768087000,-166.66,0.00013042,2]
[426735297,1782768140000,-922.45630924,0.00013,2]
[426735298,1782768152000,-922.45630924,0.00013,2]
[426735299,1782768165000,-1633.11428515,0.00013,2]
[426735300,1782768178000,-1633.11428515,0.00013,2]
[426735301,1782768190000,-826.88371761,0.00013,2]
[426735302,1782768203000,-826.88371761,0.00013,2]
[426735303,1782768215000,-1546.43629443,0.00013,2]
[426735304,1782768556000,-150.0,0.0001261,2]
[426735305,1782768556000,-151.0,0.00013,2]
[426735306,1782768556000,-151.0,0.00013,2]
[426735308,1782768556000,-151.0,0.00013,2]
[426735307,1782768556000,-151.0,0.00013,2]
[426735310,1782768556000,-151.0,0.00013,2]
[426735311,1782768556000,-151.0,0.00013,2]
[426735309,1782768556000,-150.0,0.00013,2]
[426735313,1782768556000,-151.0,0.00013,2]
[426735312,1782768556000,-151.0,0.00013,2]
[426735315,1782768556000,-152.0,0.00013,2]
[426735318,1782768556000,-151.0,0.00013,2]
[426735316,1782768556000,-151.0,0.00013,2]
[426735317,1782768556000,-151.0,0.00013,2]
[426735319,1782768556000,-150.0,0.00013044,2]
[426735314,1782768556000,-151.0,0.00013,2]
[426735321,1782768557000,-151.0,0.0001305,2]
[426735320,1782768557000,-151.0,0.00013046,2]
[426735322,1782768573000,-151.0,0.00013073,2]
[426735324,1782768582000,166.66,0.00012839,2]
[426735323,1782768582000,166.66,0.00012575,2]
[426735325,1782768627000,-216.58458871,0.00013087,2]
[426735328,1782768632000,-150.0,0.00013087,2]
[426735327,1782768632000,-150.0,0.00013087,2]
[426735330,1782768632000,-163.87,0.00013123,2]
[426735329,1782768632000,-166.66,0.00013104,2]
[426735332,1782768632000,-214.57,0.00013145,2]
[426735333,1782768632000,-150.0,0.00013179,2]
[426735334,1782768632000,-150.0,0.00013202,2]
[426735335,1782768632000,-500.0,0.00013203,2]
[426735331,1782768632000,-485.26,0.00013123,2]
[426735405,1782768633000,-568.92,0.00013698,2]
[426735404,1782768633000,-500.0,0.00013698,2]
[426735392,1782768633000,-150.0,0.00013488,2]
[426735390,1782768633000,-150.0,0.00013488,2]
[426735388,1782768633000,-150.0,0.00013488,2]
[426735380,1782768633000,-166.66,0.00013369,2]
[426735382,1782768633000,-162.56,0.00013396,2]
[426735386,1782768633000,-150.0,0.00013488,2]
[426735378,1782768633000,-9999.99,0.00013304,2]
[426735373,1782768633000,-150.99,0.00013304,2]
[426735384,1782768633000,-150.0,0.00013488,2]
[426735406,1782768633000,-892.0,0.00013698,2]
[426735393,1782768633000,-150.0,0.00013603,2]
[426735396,1782768633000,-187.30545611,0.00013612,2]
[426735399,1782768633000,-166.66,0.00013634,2]
[426735397,1782768633000,-273.26406363,0.00013612,2]
[426735401,1782768633000,-500.0,0.00013698,2]
[426735403,1782768633000,-500.0,0.00013698,2]
[426735408,1782768633000,-761.67,0.00013699,2]
[426735409,1782768633000,-4340.36,0.00013699,2]
[426735410,1782768633000,-606.76,0.00013699,2]
[426735411,1782768633000,-150.0,0.00013701,2]
[426735412,1782768633000,-916.0,0.00013701,2]
[426735416,1782768633000,-150.0,0.00013834,2]
[426735375,1782768633000,-5266.14,0.00013304,2]
[426735407,1782768633000,-200.0,0.00013699,2]
[426735371,1782768633000,-9999.99,0.00013304,2]
[426735351,1782768633000,-500.0,0.00013203,2]
[426735369,1782768633000,-5372.96,0.00013304,2]
[426735336,1782768633000,-500.0,0.00013203,2]
[426735337,1782768633000,-500.0,0.00013203,2]
[426735338,1782768633000,-500.0,0.00013203,2]
[426735341,1782768633000,-500.0,0.00013203,2]
[426735340,1782768633000,-500.0,0.00013203,2]
[426735342,1782768633000,-500.0,0.00013203,2]
[426735352,1782768633000,-293.84867974,0.00013203,2]
[426735344,1782768633000,-500.0,0.00013203,2]
[426735343,1782768633000,-500.0,0.00013203,2]
[426735346,1782768633000,-260.37565618,0.00013203,2]
[426735345,1782768633000,-500.0,0.00013203,2]
[426735414,1782768633000,-916.0,0.00013719,2]
[426735367,1782768633000,-299.99,0.00013304,2]
[426735348,1782768633000,-500.0,0.00013203,2]
[426735347,1782768633000,-500.0,0.00013203,2]
[426735349,1782768633000,-500.0,0.00013203,2]
[426735353,1782768633000,-206.15132026,0.00013203,2]
[426735354,1782768633000,-93.84867974,0.00013205,2]
[426735355,1782768633000,-608.57968406,0.00013205,2]
[426735356,1782768633000,-672.09,0.00013205,2]
[426735359,1782768633000,-4999.99,0.00013205,2]
[426735358,1782768633000,-20161.5616362,0.00013205,2]
[426735357,1782768633000,-391.88,0.00013205,2]
[426735361,1782768633000,-9999.99,0.00013205,2]
[426735363,1782768633000,-393.76,0.0001324,2]
[426735365,1782768633000,-163.77,0.00013304,2]
[426735350,1782768633000,-500.0,0.00013203,2]
[426735415,1782768633000,-886.0,0.00013748,2]
[426735339,1782768633000,-500.0,0.00013203,2]
[426735420,1782768633000,-150.0,0.00014064,2]
[426735448,1782768633000,-150.0,0.00014612,2]
[426735449,1782768633000,-150.0,0.0001464,2]
[426735450,1782768633000,-6708.35437044,0.00014671,2]
[426735451,1782768633000,-6708.35437044,0.00014696,2]
[426735456,1782768633000,-150.0,0.00014756,2]
[426735452,1782768633000,-6400.0,0.000147,5]
[426735454,1782768633000,-6708.35437044,0.00014747,2]
[426735455,1782768633000,-830.0823659,0.00014751,2]
[426735453,1782768633000,-6708.35437044,0.00014722,2]
[426735457,1782768633000,-151.0,0.00014768,2]
[426735458,1782768633000,-16737.98735128,0.00014771,2]
[426735459,1782768633000,-472.16238133,0.00014771,2]
[426735446,1782768633000,-2137.64,0.00014555,2]
[426735460,1782768633000,-1019.13739699,0.00014771,2]
[426735464,1782768633000,-6708.35437044,0.00014798,2]
[426735462,1782768633000,-16737.9873512,0.00014785,2]
[426735469,1782768633000,-1019.13739692,0.00014808,2]
[426735466,1782768633000,-4939.95571824,0.000148,2]
[426735467,1782768633000,-480.72873427,0.000148,2]
[426735463,1782768633000,-1019.13739692,0.00014789,2]
[426735465,1782768633000,-11798.03163296,0.000148,2]
[426735470,1782768633000,-12557.34895283,0.00014814,2]
[426735471,1782768633000,-1117.69894956,0.00014814,2]
[426735473,1782768633000,-2908.76800119,0.00014824,2]
[426735472,1782768633000,-3062.93944881,0.00014814,2]
[426735413,1782768633000,-150.0,0.00013718,2]
[426735461,1782768633000,-6708.35437044,0.00014773,2]
[426735447,1782768633000,-5100.0,0.000146,5]
[426735468,1782768633000,-1200.0,0.000148,5]
[426735440,1782768633000,-179.07819847,0.00014441,2]
[426735443,1782768633000,-3800.0,0.000145,5]
[426735418,1782768633000,-166.66,0.00013898,2]
[426735417,1782768633000,-150.0,0.00013862,2]
[426735419,1782768633000,-150.0,0.00013949,2]
[426735421,1782768633000,-151.0,0.00014117,2]
[426735424,1782768633000,-150.0,0.00014237,2]
[426735427,1782768633000,-300.0,0.000143,2]
[426735423,1782768633000,-150.0,0.00014179,2]
[426735426,1782768633000,-300.0,0.000143,2]
[426735430,1782768633000,-300.0,0.00014396,2]
[426735431,1782768633000,-300.0,0.00014396,2]
[426735429,1782768633000,-255.0,0.00014311,2]
[426735425,1782768633000,-150.0,0.00014295,2]
[426735422,1782768633000,-500.0,0.00014137,2]
[426735433,1782768633000,-600.0,0.00014396,2]
[426735428,1782768633000,-1200.0,0.000143,5]
[426735439,1782768633000,-150.0,0.0001441,2]
[426735444,1782768633000,-150.0,0.00014525,2]
[426735442,1782768633000,-362.4588,0.00014441,2]
[426735445,1782768633000,-500.0,0.00014548,2]
[426735441,1782768633000,-267.89027494,0.00014441,2]
[426735436,1782768633000,-600.0,0.00014396,2]
[426735435,1782768633000,-600.0,0.00014396,2]
[426735434,1782768633000,-600.0,0.00014396,2]
[426735432,1782768633000,-300.0,0.00014396,2]
[426735437,1782768633000,-600.0,0.00014396,2]
[426735438,1782768633000,-2500.0,0.000144,5]
[426735504,1782768638000,-500.0,0.0001487,2]
[426735505,1782768638000,-215.44,0.0001487,2]
[426735514,1782768638000,-500.0,0.0001487,2]
[426735503,1782768638000,-500.0,0.0001487,2]
[426735502,1782768638000,-500.0,0.0001487,2]
[426735507,1782768638000,-500.0,0.0001487,2]
[426735506,1782768638000,-500.0,0.0001487,2]
[426735509,1782768638000,-500.0,0.0001487,2]
[426735508,1782768638000,-500.0,0.0001487,2]
[426735513,1782768638000,-500.0,0.0001487,2]
[426735515,1782768638000,-500.0,0.0001487,2]
[426735516,1782768638000,-500.0,0.0001487,2]
[426735511,1782768638000,-500.0,0.0001487,2]
[426735512,1782768638000,-500.0,0.0001487,2]
[426735518,1782768638000,-500.0,0.0001487,2]
[426735517,1782768638000,-278.83218932,0.0001487,2]
[426735520,1782768638000,-500.0,0.0001487,2]
[426735519,1782768638000,-500.0,0.0001487,2]
[426735501,1782768638000,-500.0,0.0001487,2]
[426735521,1782768638000,-500.0,0.0001487,2]
[426735510,1782768638000,-500.0,0.0001487,2]
[426735499,1782768638000,-500.0,0.0001487,2]
[426735486,1782768638000,-16737.9873512,0.00014843,2]
[426735498,1782768638000,-500.0,0.0001487,2]
[426735525,1782768638000,-500.0,0.0001487,2]
[426735477,1782768638000,-826.88371761,0.00014824,2]
[426735478,1782768638000,-1339.58836649,0.00014824,2]
[426735476,1782768638000,-1633.11428515,0.00014824,2]
[426735479,1782768638000,-811.07376318,0.00014826,2]
[426735480,1782768638000,-208.06363374,0.00014826,2]
[426735481,1782768638000,-714.3926755,0.00014828,2]
[426735482,1782768638000,-557.13220684,0.00014828,2]
[426735484,1782768638000,-472.16238131,0.00014836,2]
[426735483,1782768638000,-15466.46246886,0.00014828,2]
[426735500,1782768638000,-500.0,0.0001487,2]
[426735485,1782768638000,-500.0,0.00014842,2]
[426735487,1782768638000,-1019.13739692,0.00014845,2]
[426735489,1782768638000,-16737.9873512,0.00014857,2]
[426735491,1782768638000,-151.0,0.00014868,2]
[426735490,1782768638000,-1019.13739692,0.00014863,2]
[426735492,1782768638000,-151.0,0.00014868,2]
[426735494,1782768638000,-500.0,0.0001487,2]
[426735493,1782768638000,-500.0,0.0001487,2]
[426735495,1782768638000,-500.0,0.0001487,2]
[426735497,1782768638000,-500.0,0.0001487,2]
[426735496,1782768638000,-500.0,0.0001487,2]
[426735488,1782768638000,-6708.35437044,0.00014849,2]
[426735526,1782768638000,-500.0,0.0001487,2]
[426735529,1782768638000,-500.0,0.0001487,2]
[426735522,1782768638000,-500.0,0.0001487,2]
[426735560,1782768638000,-4454.61165466,0.0001489,2]
[426735563,1782768638000,-393.76,0.00014895,2]
[426735566,1782768638000,-1482.33,0.000149,2]
[426735572,1782768638000,-1200.0,0.000149,5]
[426735570,1782768638000,-16737.9873512,0.000149,2]
[426735574,1782768638000,-472.16238131,0.000149,2]
[426735578,1782768638000,-151.0,0.00014907,2]
[426735582,1782768638000,-384667.0867993,0.0001491,2]
[426735576,1782768638000,-151.0,0.00014907,2]
[426735584,1782768638000,-146369.9750004,0.0001491,2]
[426735586,1782768638000,-151.0,0.0001491,2]
[426735588,1782768638000,-250.069761,0.0001491,2]
[426735594,1782768638000,-250.069761,0.0001491,2]
[426735590,1782768638000,-250.069761,0.0001491,2]
[426735592,1782768638000,-250.069761,0.0001491,2]
[426735596,1782768638000,-250.069761,0.0001491,2]
[426735597,1782768638000,-250.069761,0.0001491,2]
[426735599,1782768638000,-250.069761,0.0001491,2]
[426735602,1782768638000,-1875.057436,0.0001491,2]
[426735601,1782768638000,-250.069761,0.0001491,2]
[426735524,1782768638000,-500.0,0.0001487,2]
[426735555,1782768638000,-1452.21166717,0.00014886,2]
[426735568,1782768638000,-187.11836805,0.000149,10]
[426735580,1782768638000,-4364.6361459,0.0001491,2]
[426735549,1782768638000,-6708.35437044,0.00014875,2]
[426735523,1782768638000,-500.0,0.0001487,2]
[426735557,1782768638000,-505.71071187,0.0001489,2]
[426735527,1782768638000,-500.0,0.0001487,2]
[426735528,1782768638000,-500.0,0.0001487,2]
[426735530,1782768638000,-500.0,0.0001487,2]
[426735531,1782768638000,-500.0,0.0001487,2]
[426735532,1782768638000,-500.0,0.0001487,2]
[426735533,1782768638000,-500.0,0.0001487,2]
[426735536,1782768638000,-689.27,0.0001487,2]
[426735537,1782768638000,-689.27,0.0001487,2]
[426735535,1782768638000,-689.27,0.0001487,2]
[426735534,1782768638000,-689.27,0.0001487,2]
[426735551,1782768638000,-1019.13739692,0.00014882,2]
[426735541,1782768638000,-500.0,0.0001487,2]
[426735539,1782768638000,-689.27,0.0001487,2]
[426735540,1782768638000,-500.0,0.0001487,2]
[426735542,1782768638000,-500.0,0.0001487,2]
[426735546,1782768638000,-150.0,0.00014871,2]
[426735544,1782768638000,-424.12596773,0.0001487,2]
[426735547,1782768638000,-16737.9873512,0.00014871,2]
[426735538,1782768638000,-689.27,0.0001487,2]
[426735553,1782768638000,-16737.9873512,0.00014886,2]
[426735639,1782768639000,-500.0,0.00014999,2]
[426735636,1782768639000,-500.0,0.00014999,2]
[426735637,1782768639000,-500.0,0.00014999,2]
[426735634,1782768639000,-500.0,0.00014999,2]
[426735632,1782768639000,-500.0,0.00014999,2]
[426735631,1782768639000,-500.0,0.00014999,2]
[426735633,1782768639000,-500.0,0.00014999,2]
[426735642,1782768639000,-500.0,0.00014999,2]
[426735630,1782768639000,-500.0,0.00014999,2]
[426735638,1782768639000,-500.0,0.00014999,2]
[426735650,1782768639000,-500.0,0.00014999,2]
[426735641,1782768639000,-500.0,0.00014999,2]
[426735643,1782768639000,-500.0,0.00014999,2]
[426735647,1782768639000,-500.0,0.00014999,2]
[426735644,1782768639000,-500.0,0.00014999,2]
[426735645,1782768639000,-500.0,0.00014999,2]
[426735646,1782768639000,-500.0,0.00014999,2]
[426735649,1782768639000,-500.0,0.00014999,2]
[426735648,1782768639000,-500.0,0.00014999,2]
[426735651,1782768639000,-500.0,0.00014999,2]
[426735635,1782768639000,-500.0,0.00014999,2]
[426735604,1782768639000,-1875.057436,0.0001491,2]
[426735629,1782768639000,-500.0,0.00014999,2]
[426735607,1782768639000,-1875.057436,0.0001491,2]
[426735627,1782768639000,-151.0,0.00014997,2]
[426735605,1782768639000,-1875.057436,0.0001491,2]
[426735603,1782768639000,-1875.057436,0.0001491,2]
[426735606,1782768639000,-1875.057436,0.0001491,2]
[426735610,1782768639000,-151.0,0.0001491,2]
[426735608,1782768639000,-1875.057436,0.0001491,2]
[426735609,1782768639000,-1875.057436,0.0001491,2]
[426735612,1782768639000,-151.0,0.0001491,2]
[426735611,1782768639000,-151.0,0.0001491,2]